fUSD/lending_fUSD_20250504
["ID","MTS","AMOUNT","RATE_DAILY","PERIOD"]
[359871814,1746391851207,-871.0044784,0.00019998,2]
[359871815,1746391906093,4012.72,0.0001909,2]
[359871816,1746392083890,385.53,0.00017089,2]
[359871817,1746392084102,385.53,0.00019352,2]
[359871818,1746392633406,1000.0,0.00018932,2]
[359871824,1746392990506,250.0,0.00017,2]
[359871825,1746392991616,300.0,0.00019,2]
[359871826,1746392997627,921.6259438,0.000185,3]
[359871829,1746393031973,-152.679406,0.00019726,2]
[359871830,1746393031983,-152.679406,0.00019726,2]
[359871831,1746393031992,-152.679406,0.00019726,2]
[359871832,1746393032177,-152.679406,0.00019726,2]
[359871833,1746393032187,-200.0,0.0001974,2]
[359871834,1746393032196,-152.679406,0.00019753,2]
[359871835,1746393032206,-152.679406,0.0001978,2]
[359871836,1746393032216,-141.09757897,0.00019799,2]
[359871837,1746393032246,-1058.90242103,0.00019799,2]
[359871838,1746393032256,-300.0,0.00019799,2]
[359871839,1746393032265,-300.0,0.00019799,2]
[359871841,1746393032275,-508.42965404,0.000198,2]
[359872057,1746393037975,-438.01429041,0.000198,2]
[359872058,1746393037987,-11772.31579346,0.000198,2]
[359872059,1746393038045,-39007.78676509,0.000198,2]
[359872060,1746393038054,-1074.0,0.0001983,2]
[359872061,1746393038063,-207.4,0.00019885,2]
[359872062,1746393038072,-265.9975,0.00019896,2]
[359872063,1746393038082,-501.47867214,0.00019896,2]
[359872064,1746393038091,-501.4786721,0.00019896,2]
[359872065,1746393038099,-501.4786721,0.00019897,2]
[359872066,1746393038108,-57658.09068718,0.00019897,2]
[359872067,1746393038117,-501.4786721,0.00019897,2]
[359872068,1746393038127,-500.0,0.00019897,2]
[359872069,1746393038136,-500.0,0.00019897,2]
[359872070,1746393038146,-526.95072417,0.00019897,2]
[359872071,1746393038155,-501.4786721,0.00019898,2]
[359872072,1746393038164,-1176.70501305,0.00019898,2]
[359872073,1746393038174,-1176.70501304,0.00019898,2]
[359872074,1746393038183,-501.4786721,0.00019898,2]
[359872075,1746393038192,-1176.70501304,0.00019898,2]
[359872076,1746393038201,-501.4786721,0.00019899,2]
[359872077,1746393038210,-1176.70501304,0.00019899,2]
[359872078,1746393038219,-1176.70501304,0.00019899,2]
[359872079,1746393038229,-115.89905361,0.00019899,2]
[359872093,1746393041782,-385.57961849,0.00019899,2]
[359872094,1746393041792,-93.88492581,0.00019899,2]
[359872095,1746393041813,-1082.82008723,0.00019899,2]
[359872096,1746393041822,-1176.70501304,0.00019899,2]
[359872097,1746393041831,-501.4786721,0.000199,2]
[359872098,1746393041840,-1176.70501304,0.000199,2]
[359872099,1746393041849,-1176.70501304,0.000199,2]
[359872100,1746393041858,-6090.04754405,0.000199,2]
[359872101,1746393041867,-501.4786721,0.000199,2]
[359872102,1746393041877,-1176.70501304,0.000199,2]
[359872103,1746393041886,-500.0,0.00019918,2]
[359872104,1746393041895,-166.233,0.00019968,2]
[359872105,1746393041904,-500.0,0.00019973,2]
[359872106,1746393041913,-500.0,0.00019973,2]
[359872107,1746393041922,-500.0,0.00019973,2]
[359872108,1746393041931,-797.0,0.00019983,2]
[359872109,1746393041940,-3371.6205814,0.00019986,2]
[359872110,1746393041948,-1569.36,0.00019994,2]
[359872111,1746393041959,-1000.0,0.00019995,2]
[359872112,1746393041969,-470.0,0.00019996,2]
[359872113,1746393041979,-400.0,0.00019996,2]
[359872114,1746393041989,-317.71941396,0.00019996,2]
[359872115,1746393041999,-204.98,0.00019996,2]
[359872116,1746393042009,-470.0,0.00019996,2]
[359872117,1746393042019,-470.0,0.00019996,2]
[359872118,1746393042028,-470.0,0.00019996,2]
[359872119,1746393042037,-470.0,0.00019996,2]
[359872120,1746393042047,-470.0,0.00019996,2]
[359872121,1746393042057,-470.0,0.00019996,2]
[359872122,1746393042066,-470.0,0.00019996,2]
[359872123,1746393042076,-470.0,0.00019996,2]
[359872124,1746393042085,-470.0,0.00019996,2]
[359872125,1746393042095,-470.0,0.00019996,2]
[359872126,1746393042105,-516.12,0.00019996,2]
[359872127,1746393042115,-470.0,0.00019996,2]
[359872128,1746393042124,-470.0,0.00019996,2]
[359872129,1746393042134,-470.0,0.00019996,2]
[359872130,1746393042144,-483.81,0.00019996,2]
[359872131,1746393042154,-470.0,0.00019996,2]
[359872132,1746393042163,-470.0,0.00019996,2]
[359872133,1746393042173,-470.0,0.00019996,2]
[359872134,1746393042182,-470.0,0.00019996,2]
[359872135,1746393042192,-470.0,0.00019996,2]
[359872136,1746393042201,-470.0,0.00019996,2]
[359872137,1746393042210,-568.56,0.00019996,2]
[359872138,1746393042220,-470.0,0.00019996,2]
[359872139,1746393042230,-470.0,0.00019996,2]
[359872140,1746393042239,-470.0,0.00019996,2]
[359872141,1746393042249,-470.0,0.00019996,2]
[359872142,1746393042259,-450.0,0.00019996,2]
[359872143,1746393042269,-470.0,0.00019996,2]
[359872144,1746393042278,-450.0,0.00019996,2]
[359872145,1746393042288,-450.0,0.00019996,2]
[359872146,1746393042298,-470.0,0.00019996,2]
[359872147,1746393042308,-470.0,0.00019996,2]
[359872148,1746393042318,-470.0,0.00019996,2]
[359872149,1746393042327,-501.04169387,0.00019996,2]
[359872150,1746393042337,-445.70357789,0.00019996,2]
[359872151,1746393042346,-450.0,0.00019996,2]
[359872152,1746393042356,-450.0,0.00019996,2]
[359872153,1746393042365,-450.0,0.00019996,2]
[359872154,1746393042375,-470.0,0.00019996,2]
[359872155,1746393042385,-450.0,0.00019996,2]
[359872156,1746393042394,-986.31,0.00019996,2]
[359872157,1746393042403,-450.0,0.00019996,2]
[359872158,1746393042413,-450.0,0.00019996,2]
[359872159,1746393042422,-924.45,0.00019996,2]
[359872160,1746393042433,-400.01635004,0.00019996,2]
[359872161,1746393042445,-433.71,0.00019996,2]
[359872162,1746393042454,-450.0,0.00019996,2]
[359872163,1746393042463,-252.23894133,0.00019996,2]
[359872164,1746393042473,-490.0,0.00019996,2]
[359872165,1746393042482,-470.0,0.00019996,2]
[359872166,1746393042492,-470.0,0.00019997,2]
[359872167,1746393042501,-444.72482314,0.00019997,2]
[359872168,1746393042510,-470.0,0.00019997,2]
[359872169,1746393042520,-490.0,0.00019997,2]
[359872170,1746393042530,-450.0,0.00019997,2]
[359872171,1746393042539,-450.0,0.00019997,2]
[359872172,1746393042548,-450.0,0.00019997,2]
[359872173,1746393042557,-547.98,0.00019997,2]
[359872174,1746393042567,-470.0,0.00019997,2]
[359872175,1746393042576,-490.0,0.00019997,2]
[359872176,1746393042585,-244.36,0.00019997,2]
[359872177,1746393042595,-450.0,0.00019997,2]
[359872178,1746393042605,-598.4,0.00019997,2]
[359872179,1746393042614,-490.0,0.00019997,2]
[359872180,1746393042623,-450.0,0.00019997,2]
[359872181,1746393042771,-490.0,0.00019997,2]
[359872182,1746393042784,-450.0,0.00019997,2]
[359872183,1746393042794,-470.0,0.00019997,2]
[359872184,1746393042803,-490.0,0.00019997,2]
[359872185,1746393042812,-450.0,0.00019997,2]
[359872186,1746393042821,-450.0,0.00019997,2]
[359872187,1746393042831,-450.0,0.00019997,2]
[359872188,1746393042840,-450.0,0.00019997,2]
[359872189,1746393042849,-490.0,0.00019997,2]
[359872190,1746393042859,-450.0,0.00019997,2]
[359872191,1746393042869,-404.87727395,0.00019997,2]
[359872192,1746393042878,-550.67240726,0.00019997,2]
[359872193,1746393042888,-450.0,0.00019997,2]
[359872195,1746393042897,-490.0,0.00019997,2]
[359872197,1746393042906,-450.0,0.00019997,2]
[359872198,1746393042916,-450.0,0.00019997,2]
[359872199,1746393042925,-470.0,0.00019997,2]
[359872200,1746393042935,-227.04031648,0.00019997,2]
[359872201,1746393042944,-474.30726478,0.00019997,2]
[359872202,1746393042954,-381.44,0.00019997,2]
[359872203,1746393042963,-490.0,0.00019997,2]
[359872204,1746393042972,-450.0,0.00019997,2]
[359872205,1746393042981,-490.0,0.00019997,2]
[359872206,1746393042991,-450.0,0.00019997,2]
[359872207,1746393043000,-490.0,0.00019997,2]
[359872209,1746393043009,-450.0,0.00019997,2]
[359872210,1746393043018,-450.0,0.00019997,2]
[359872211,1746393043027,-490.0,0.00019997,2]
[359872212,1746393043036,-450.0,0.00019997,2]
[359872213,1746393043046,-450.0,0.00019997,2]
[359872214,1746393043055,-450.0,0.00019997,2]
[359872215,1746393043064,-490.0,0.00019997,2]
[359872216,1746393043074,-450.0,0.00019997,2]
[359872217,1746393043083,-450.0,0.00019997,2]
[359872218,1746393043092,-490.0,0.00019997,2]
[359872219,1746393043102,-470.0,0.00019997,2]
[359872220,1746393043111,-470.0,0.00019997,2]
[359872221,1746393043121,-490.0,0.00019997,2]
[359872222,1746393043130,-490.0,0.00019997,2]
[359872223,1746393043140,-490.0,0.00019997,2]
[359872224,1746393043150,-595.76053213,0.00019997,2]
[359872225,1746393043159,-450.0,0.00019997,2]
[359872226,1746393043169,-566.29,0.00019997,2]
[359872227,1746393043179,-450.0,0.00019997,2]
[359872228,1746393043188,-470.0,0.00019997,2]
[359872229,1746393043198,-490.0,0.00019997,2]
[359872230,1746393043207,-450.0,0.00019997,2]
[359872231,1746393043216,-470.0,0.00019997,2]
[359872232,1746393043225,-490.0,0.00019997,2]
[359872233,1746393043235,-490.0,0.00019997,2]
[359872234,1746393043245,-490.0,0.00019997,2]
[359872235,1746393043254,-450.0,0.00019997,2]
[359872236,1746393043263,-476.36711456,0.00019997,2]
[359872237,1746393043273,-450.0,0.00019997,2]
[359872238,1746393043282,-490.0,0.00019997,2]
[359872239,1746393043291,-470.0,0.00019997,2]
[359872240,1746393043301,-450.0,0.00019997,2]
[359872241,1746393043310,-490.0,0.00019997,2]
[359872242,1746393043320,-450.0,0.00019997,2]
[359872243,1746393043329,-450.0,0.00019997,2]
[359872244,1746393043339,-264.27,0.00019997,2]
[359872245,1746393043348,-450.0,0.00019997,2]
[359872246,1746393043358,-450.0,0.00019997,2]
[359872247,1746393043367,-450.0,0.00019997,2]
[359872248,1746393043377,-470.0,0.00019997,2]
[359872249,1746393043386,-470.0,0.00019997,2]
[359872250,1746393043396,-470.0,0.00019997,2]
[359872251,1746393043405,-450.0,0.00019997,2]
[359872252,1746393043415,-490.0,0.00019997,2]
[359872253,1746393043424,-450.0,0.00019997,2]
[359872254,1746393043437,-470.0,0.00019997,2]
[359872255,1746393043446,-470.0,0.00019997,2]
[359872256,1746393043456,-354.26,0.00019997,2]
[359872257,1746393043465,-470.0,0.00019997,2]
[359872258,1746393043475,-285.89,0.00019997,2]
[359872259,1746393043484,-450.0,0.00019997,2]
[359872260,1746393043494,-490.0,0.00019997,2]
[359872261,1746393043503,-572.3664922,0.00019997,2]
[359872262,1746393043517,-470.0,0.00019997,2]
[359872264,1746393043528,-450.0,0.00019997,2]
[359872265,1746393043536,-534.97581333,0.00019997,2]
[359872266,1746393043546,-470.0,0.00019997,2]
[359872267,1746393043555,-332.97046141,0.00019997,2]
[359872268,1746393043564,-186.81257538,0.00019997,2]
[359872269,1746393043573,-450.0,0.00019997,2]
[359872270,1746393043582,-500.0,0.00019997,2]
[359872271,1746393043592,-450.0,0.00019997,2]
[359872272,1746393043602,-470.0,0.00019997,2]
[359872274,1746393043612,-546.53885919,0.00019997,2]
[359872276,1746393043623,-470.0,0.00019997,2]
[359872277,1746393043632,-450.0,0.00019997,2]
[359872278,1746393043642,-168.77257994,0.00019997,2]
[359872279,1746393043652,-500.0,0.00019997,2]
[359872280,1746393043662,-450.0,0.00019997,2]
[359872281,1746393043672,-470.0,0.00019997,2]
[359872282,1746393043682,-470.0,0.00019997,2]
[359872283,1746393043691,-450.0,0.00019997,2]
[359872284,1746393043701,-154.9719065,0.00019997,2]
[359872285,1746393043711,-470.0,0.00019997,2]
[359872286,1746393043721,-1000.0,0.00019997,2]
[359872287,1746393043731,-450.0,0.00019997,2]
[359872288,1746393043741,-187.79225103,0.00019997,2]
[359872289,1746393043750,-598.75917512,0.00019997,2]
[359872290,1746393043760,-450.0,0.00019997,2]
[359872291,1746393043770,-470.0,0.00019997,2]
[359872292,1746393043780,-450.0,0.00019997,2]
[359872293,1746393043789,-470.0,0.00019997,2]
[359872294,1746393043799,-470.0,0.00019997,2]
[359872295,1746393043809,-470.0,0.00019997,2]
[359872296,1746393043818,-450.0,0.00019997,2]
[359872297,1746393043828,-450.0,0.00019997,2]
[359872298,1746393043838,-470.0,0.00019997,2]
[359872299,1746393043848,-450.0,0.00019997,2]
[359872300,1746393043858,-450.0,0.00019997,2]
[359872301,1746393043867,-493.39340979,0.00019997,2]
[359872302,1746393043877,-450.0,0.00019997,2]
[359872303,1746393043887,-470.0,0.00019997,2]
[359872304,1746393043896,-470.0,0.00019997,2]
[359872305,1746393043906,-490.0,0.00019997,2]
[359872306,1746393043915,-450.0,0.00019997,2]
[359872307,1746393043925,-540.05878867,0.00019997,2]
[359872308,1746393043935,-503.42922744,0.00019997,2]
[359872309,1746393043944,-450.0,0.00019997,2]
[359872310,1746393043953,-490.0,0.00019997,2]
[359872311,1746393043963,-450.0,0.00019997,2]
[359872312,1746393043972,-470.0,0.00019997,2]
[359872313,1746393043981,-490.0,0.00019997,2]
[359872314,1746393043990,-450.0,0.00019997,2]
[359872315,1746393044000,-450.0,0.00019997,2]
[359872316,1746393044009,-150.88,0.00019997,2]
[359872317,1746393044019,-490.0,0.00019997,2]
[359872318,1746393044029,-450.0,0.00019997,2]
[359872319,1746393044038,-490.0,0.00019997,2]
[359872320,1746393044048,-450.0,0.00019997,2]
[359872321,1746393044057,-450.0,0.00019997,2]
[359872322,1746393044067,-490.0,0.00019997,2]
[359872323,1746393044077,-490.0,0.00019997,2]
[359872324,1746393044087,-450.0,0.00019997,2]
[359872325,1746393044096,-454.68452417,0.00019997,2]
[359872326,1746393044105,-490.0,0.00019997,2]
[359872327,1746393044115,-490.0,0.00019997,2]
[359872328,1746393044124,-490.0,0.00019997,2]
[359872329,1746393044133,-490.0,0.00019997,2]
[359872330,1746393044143,-490.0,0.00019997,2]
[359872331,1746393044152,-500.0,0.00019997,2]
[359872332,1746393044162,-259.21357841,0.00019997,2]
[359872333,1746393044172,-490.0,0.00019997,2]
[359872334,1746393044181,-450.0,0.00019997,2]
[359872335,1746393044191,-490.0,0.00019997,2]
[359872336,1746393044200,-490.0,0.00019997,2]
[359872337,1746393044209,-490.0,0.00019997,2]
[359872338,1746393044219,-450.0,0.00019997,2]
[359872339,1746393044229,-450.0,0.00019997,2]
[359872340,1746393044240,-494.98,0.00019997,2]
[359872341,1746393044250,-470.0,0.00019997,2]
[359872342,1746393044259,-490.0,0.00019997,2]
[359872343,1746393044268,-450.0,0.00019997,2]
[359872344,1746393044278,-511.32,0.00019997,2]
[359872345,1746393044287,-490.0,0.00019997,2]
[359872346,1746393044297,-583.12,0.00019997,2]
[359872347,1746393044306,-450.0,0.00019997,2]
[359872348,1746393044317,-264.67177662,0.00019997,2]
[359872349,1746393044326,-450.0,0.00019997,2]
[359872350,1746393044336,-515.31383177,0.00019997,2]
[359872351,1746393044346,-188.2530997,0.00019997,2]
[359872352,1746393044356,-490.0,0.00019997,2]
[359872353,1746393044365,-490.0,0.00019997,2]
[359872354,1746393044375,-450.0,0.00019997,2]
[359872355,1746393044385,-490.0,0.00019997,2]
[359872356,1746393044394,-454.34234826,0.00019997,2]
[359872357,1746393044404,-490.0,0.00019997,2]
[359872358,1746393044413,-450.0,0.00019997,2]
[359872359,1746393044422,-450.0,0.00019997,2]
[359872360,1746393044435,-490.0,0.00019997,2]
[359872361,1746393044444,-470.0,0.00019997,2]
[359872362,1746393044454,-450.0,0.00019997,2]
[359872363,1746393044463,-450.0,0.00019997,2]
[359872364,1746393044472,-450.0,0.00019997,2]
[359872365,1746393044482,-593.65785568,0.00019997,2]
[359872366,1746393044491,-450.0,0.00019997,2]
[359872367,1746393044500,-381.96,0.00019997,2]
[359872368,1746393044512,-10964.44,0.00019997,2]
[359872369,1746393044521,-490.0,0.00019997,2]
[359872370,1746393044530,-450.0,0.00019997,2]
[359872371,1746393044540,-490.0,0.00019997,2]
[359872372,1746393044549,-490.0,0.00019997,2]
[359872373,1746393044558,-490.0,0.00019997,2]
[359872374,1746393044568,-450.0,0.00019997,2]
[359872375,1746393044577,-490.0,0.00019997,2]
[359872376,1746393044586,-450.0,0.00019997,2]
[359872377,1746393044596,-1149.57,0.00019997,2]
[359872378,1746393044605,-450.0,0.00019997,2]
[359872379,1746393044615,-490.0,0.00019997,2]
[359872380,1746393044624,-450.0,0.00019997,2]
[359872381,1746393044633,-490.0,0.00019997,2]
[359872382,1746393044642,-450.0,0.00019997,2]
[359872383,1746393044652,-450.0,0.00019997,2]
[359872384,1746393044661,-450.0,0.00019997,2]
[359872385,1746393044670,-450.0,0.00019997,2]
[359872386,1746393044680,-807.01,0.00019997,2]
[359872387,1746393044689,-490.0,0.00019997,2]
[359872388,1746393044698,-490.0,0.00019997,2]
[359872389,1746393044708,-450.0,0.00019997,2]
[359872390,1746393044717,-450.0,0.00019997,2]
[359872391,1746393044726,-450.0,0.00019997,2]
[359872392,1746393044735,-490.0,0.00019997,2]
[359872393,1746393044744,-471.15324836,0.00019997,2]
[359872394,1746393044753,-1149.0,0.00019997,2]
[359872395,1746393044763,-450.0,0.00019997,2]
[359872396,1746393044772,-490.0,0.00019997,2]
[359872397,1746393044781,-450.0,0.00019997,2]
[359872398,1746393044790,-450.0,0.00019997,2]
[359872399,1746393044800,-450.0,0.00019997,2]
[359872400,1746393044809,-450.0,0.00019997,2]
[359872401,1746393044818,-470.0,0.00019997,2]
[359872402,1746393044827,-500.0,0.00019997,2]
[359872403,1746393044836,-450.0,0.00019997,2]
[359872404,1746393044846,-450.0,0.00019997,2]
[359872405,1746393044855,-450.0,0.00019997,2]
[359872406,1746393044865,-450.0,0.00019997,2]
[359872407,1746393044875,-576.54,0.00019997,2]
[359872408,1746393044884,-568.81496416,0.00019997,2]
[359872409,1746393044893,-986.65,0.00019997,2]
[359872410,1746393044903,-450.0,0.00019997,2]
[359872411,1746393044912,-450.0,0.00019997,2]
[359872412,1746393044921,-14221.83,0.00019997,2]
[359872413,1746393044930,-450.0,0.00019997,2]
[359872414,1746393044940,-450.0,0.00019997,2]
[359872415,1746393044950,-470.0,0.00019997,2]
[359872416,1746393044959,-450.0,0.00019997,2]
[359872417,1746393044969,-470.0,0.00019997,2]
[359872418,1746393044978,-450.0,0.00019997,2]
[359872419,1746393044987,-450.0,0.00019997,2]
[359872420,1746393044996,-450.0,0.00019997,2]
[359872421,1746393045005,-450.0,0.00019997,2]
[359872422,1746393045015,-470.0,0.00019997,2]
[359872423,1746393045024,-450.0,0.00019997,2]
[359872424,1746393045033,-450.0,0.00019997,2]
[359872425,1746393045043,-470.0,0.00019997,2]
[359872426,1746393045052,-500.0,0.00019997,2]
[359872427,1746393045061,-470.0,0.00019997,2]
[359872428,1746393045071,-749.06,0.00019997,2]
[359872429,1746393045079,-470.0,0.00019997,2]
[359872430,1746393045088,-470.0,0.00019997,2]
[359872431,1746393045097,-470.0,0.00019997,2]
[359872432,1746393045107,-470.0,0.00019997,2]
[359872433,1746393045116,-470.0,0.00019997,2]
[359872434,1746393045125,-470.0,0.00019997,2]
[359872435,1746393045134,-470.0,0.00019997,2]
[359872436,1746393045144,-450.0,0.00019997,2]
[359872437,1746393045154,-470.0,0.00019997,2]
[359872438,1746393045164,-470.0,0.00019997,2]
[359872439,1746393045173,-450.0,0.00019997,2]
[359872440,1746393045183,-470.0,0.00019997,2]
[359872441,1746393045193,-470.0,0.00019997,2]
[359872442,1746393045202,-598.85,0.00019997,2]
[359872443,1746393045211,-470.0,0.00019997,2]
[359872444,1746393045221,-270.72,0.00019997,2]
[359872445,1746393045231,-470.0,0.00019997,2]
[359872446,1746393045240,-510.93515918,0.00019997,2]
[359872447,1746393045249,-159.13729955,0.00019997,2]
[359872448,1746393045259,-450.0,0.00019997,2]
[359872449,1746393045268,-470.0,0.00019997,2]
[359872450,1746393045277,-450.0,0.00019997,2]
[359872451,1746393045287,-470.0,0.00019997,2]
[359872452,1746393045296,-470.0,0.00019997,2]
[359872453,1746393045305,-450.0,0.00019997,2]
[359872454,1746393045315,-527.83,0.00019997,2]
[359872455,1746393045325,-224.56867057,0.00019997,2]
[359872456,1746393045334,-450.0,0.00019997,2]
[359872457,1746393045343,-470.0,0.00019997,2]
[359872458,1746393045353,-233.43978532,0.00019997,2]
[359872459,1746393045362,-450.0,0.00019997,2]
[359872460,1746393045371,-339.24983869,0.00019997,2]
[359872461,1746393045381,-8561.3634847,0.00019998,2]
[359872462,1746393045391,-200.0,0.00019998,2]
[359872463,1746393045400,-598.18372447,0.00019998,2]
[359872464,1746393045409,-200.0,0.00019998,2]
[359872465,1746393045419,-450.0,0.00019998,2]
[359872466,1746393045429,-450.0,0.00019998,2]
[359872467,1746393045443,-450.0,0.00019998,2]
[359872468,1746393045452,-450.0,0.00019998,2]
[359872469,1746393045461,-450.0,0.00019998,2]
[359872470,1746393045471,-450.0,0.00019998,2]
[359872471,1746393045482,-450.0,0.00019998,2]
[359872472,1746393045492,-150.42,0.00019998,2]
[359872473,1746393045501,-450.0,0.00019998,2]
[359872474,1746393045511,-490.0,0.00019998,2]
[359872475,1746393045521,-450.0,0.00019998,2]
[359872476,1746393045540,-450.0,0.00019998,2]
[359872477,1746393045550,-152.7,0.00019998,2]
[359872478,1746393045560,-490.0,0.00019998,2]
[359872479,1746393045570,-450.0,0.00019998,2]
[359872480,1746393045580,-169.94,0.00019998,2]
[359872481,1746393045590,-450.0,0.00019998,2]
[359872482,1746393045600,-490.0,0.00019998,2]
[359872483,1746393045609,-450.0,0.00019998,2]
[359872484,1746393045619,-450.0,0.00019998,2]
[359872485,1746393045629,-450.0,0.00019998,2]
[359872486,1746393045639,-576.72,0.00019998,2]
[359872487,1746393045648,-450.0,0.00019998,2]
[359872488,1746393045658,-252.34,0.00019998,2]
[359872489,1746393045667,-450.0,0.00019998,2]
[359872490,1746393045676,-450.0,0.00019998,2]
[359872491,1746393045686,-450.0,0.00019998,2]
[359872492,1746393045695,-297.38,0.00019998,2]
[359872493,1746393045705,-490.0,0.00019998,2]
[359872494,1746393045714,-450.0,0.00019998,2]
[359872495,1746393045723,-313.57,0.00019998,2]
[359872496,1746393045732,-490.0,0.00019998,2]
[359872497,1746393045742,-450.0,0.00019998,2]
[359872498,1746393045751,-320.2,0.00019998,2]
[359872499,1746393045761,-259.66,0.00019998,2]
[359872500,1746393045770,-450.0,0.00019998,2]
[359872502,1746393045780,-497.02,0.00019998,2]
[359872503,1746393045789,-450.0,0.00019998,2]
[359872505,1746393045799,-450.0,0.00019998,2]
[359872507,1746393045808,-518.46,0.00019998,2]
[359872508,1746393045818,-490.0,0.00019998,2]
[359872509,1746393045828,-450.0,0.00019998,2]
[359872510,1746393045838,-450.0,0.00019998,2]
[359872511,1746393045848,-450.0,0.00019998,2]
[359872512,1746393045858,-490.0,0.00019998,2]
[359872513,1746393045868,-155.39610609,0.00019998,2]
[359872514,1746393045878,-450.0,0.00019998,2]
[359872515,1746393045888,-490.0,0.00019998,2]
[359872516,1746393045898,-490.0,0.00019998,2]
[359872517,1746393045908,-450.0,0.00019998,2]
[359872518,1746393045917,-450.0,0.00019998,2]
[359872519,1746393045927,-559.67,0.00019998,2]
[359872520,1746393045937,-450.0,0.00019998,2]
[359872521,1746393045946,-567.28,0.00019998,2]
[359872522,1746393045956,-450.0,0.00019998,2]
[359872523,1746393045966,-450.0,0.00019998,2]
[359872524,1746393045975,-450.0,0.00019998,2]
[359872525,1746393045985,-490.0,0.00019998,2]
[359872526,1746393045994,-287.41712154,0.00019998,2]
[359872527,1746393046004,-450.0,0.00019998,2]
[359872528,1746393046013,-450.0,0.00019998,2]
[359872529,1746393046023,-470.0,0.00019998,2]
[359872530,1746393046033,-450.0,0.00019998,2]
[359872531,1746393046042,-542.23,0.00019998,2]
[359872532,1746393046052,-470.0,0.00019998,2]
[359872533,1746393046062,-500.0,0.00019998,2]
[359872534,1746393046072,-500.0,0.00019998,2]
[359872535,1746393046081,-500.0,0.00019998,2]
[359872536,1746393046091,-470.0,0.00019998,2]
[359872537,1746393046101,-450.0,0.00019998,2]
[359872538,1746393046111,-450.0,0.00019998,2]
[359872539,1746393046120,-450.0,0.00019998,2]
[359872540,1746393046130,-450.0,0.00019998,2]
[359872541,1746393046140,-450.0,0.00019998,2]
[359872542,1746393046150,-470.0,0.00019998,2]
[359872543,1746393046159,-530.31733752,0.00019998,2]
[359872544,1746393046169,-473.26502483,0.00019998,2]
[359872545,1746393046178,-200.0,0.00019998,2]
[359872546,1746393046188,-450.0,0.00019998,2]
[359872547,1746393046197,-490.0,0.00019998,2]
[359872548,1746393046207,-450.0,0.00019998,2]
[359872549,1746393046216,-268.52922541,0.00019998,2]
[359872550,1746393046389,-159.0,0.00019998,2]
[359872551,1746393046400,-450.0,0.00019998,2]
[359872552,1746393046410,-450.0,0.00019998,2]
[359872553,1746393046420,-450.0,0.00019998,2]
[359872554,1746393046429,-450.0,0.00019998,2]
[359872555,1746393046443,-450.0,0.00019998,2]
[359872556,1746393046452,-490.0,0.00019998,2]
[359872558,1746393046462,-450.0,0.00019998,2]
[359872560,1746393046472,-450.0,0.00019998,2]